[Event "*** Titled Tuesday Blitz"]
[Site "Chess.com"]
[Date "2020.12.29"]
[Round "7"]
[White "juli2512"]
[Black "rududuyk"]
[Result "1-0"]
[WhiteElo "2115"]
[BlackElo "2253"]
[TimeControl "180+1"]
[EndTime "11:16:18 PST"]
[Termination "juli2512 won by resignation"]

1. e4 {[%clk 0:03:00.9]} 1... e6 {[%clk 0:03:00.3]} 2. d4 {[%clk 0:03:00.3]}
2... d5 {[%clk 0:03:00.8]} 3. Nd2 {[%clk 0:03:00.6]} 3... Nf6 {[%clk 0:03:00.2]}
4. e5 {[%clk 0:03:00.2]} 4... Nfd7 {[%clk 0:03:00.8]} 5. Bd3 {[%clk 0:03:00.7]}
5... c5 {[%clk 0:03:01.1]} 6. c3 {[%clk 0:03:01.3]} 6... Nc6 {[%clk 0:03:00.8]}
7. Ne2 {[%clk 0:03:01.1]} 7... cxd4 {[%clk 0:03:01.4]} 8. cxd4 {[%clk 0:03:01]}
8... f6 {[%clk 0:03:01.8]} 9. exf6 {[%clk 0:03:00.9]} 9... Nxf6 {[%clk
0:03:02.7]} 10. Nf3 {[%clk 0:03:01]} 10... Bd6 {[%clk 0:03:03.1]} 11. O-O {[%clk
0:02:57.8]} 11... Qc7 {[%clk 0:03:03.3]} 12. Bg5 {[%clk 0:02:56.6]} 12... O-O
{[%clk 0:03:03.4]} 13. Bh4 {[%clk 0:02:56.4]} 13... Nh5 {[%clk 0:02:59.8]} 14.
Ng3 {[%clk 0:02:50.7]} 14... Nf4 {[%clk 0:02:51.5]} 15. Bb1 {[%clk 0:02:30.9]}
15... Bd7 {[%clk 0:02:12]} 16. a3 {[%clk 0:02:19.9]} 16... Be8 {[%clk
0:02:09.2]} 17. Re1 {[%clk 0:02:10.3]} 17... Bg6 {[%clk 0:01:43.7]} 18. b4
{[%clk 0:01:57.1]} 18... Rae8 {[%clk 0:01:22.8]} 19. b5 {[%clk 0:01:51.1]} 19...
Na5 {[%clk 0:01:22]} 20. Ne5 {[%clk 0:01:49.2]} 20... Bxb1 {[%clk 0:01:12]} 21.
Qxb1 {[%clk 0:01:31.9]} 21... Nc4 {[%clk 0:01:05.8]} 22. Nxc4 {[%clk 0:01:17.2]}
22... Qxc4 {[%clk 0:01:02.5]} 23. Qd1 {[%clk 0:01:00.6]} 23... Nd3 {[%clk
0:00:56.7]} 24. Re2 {[%clk 0:00:56.6]} 24... Qxd4 {[%clk 0:00:46]} 25. Bg5
{[%clk 0:00:53.7]} 25... e5 {[%clk 0:00:16.4]} 26. Be3 {[%clk 0:00:49.8]} 26...
Qc3 {[%clk 0:00:12.5]} 27. Bxa7 {[%clk 0:00:45.5]} 27... d4 {[%clk 0:00:10.6]}
28. Ne4 {[%clk 0:00:43.1]} 28... Qc4 {[%clk 0:00:08.1]} 29. Nxd6 {[%clk
0:00:38.5]} 29... Qd5 {[%clk 0:00:06.9]} 30. Ne4 {[%clk 0:00:37.3]} 30... Rf4
{[%clk 0:00:05.4]} 31. Qxd3 {[%clk 0:00:36.1]} 1-0

[Event "*** Titled Tuesday Blitz"]
[Site "Chess.com"]
[Date "2020.12.29"]
[Round "7"]
[White "Hikaru"]
[Black "WPWPWP-2015"]
[Result "1-0"]
[WhiteElo "3227"]
[BlackElo "2476"]
[TimeControl "180+1"]
[EndTime "11:16:25 PST"]
[Termination "Hikaru won on time"]

1. e4 {[%clk 0:03:00.9]} 1... e5 {[%clk 0:02:58.7]} 2. Nf3 {[%clk 0:03:00.6]}
2... Nc6 {[%clk 0:02:57.1]} 3. Bb5 {[%clk 0:03:00.2]} 3... Nf6 {[%clk
0:02:57.3]} 4. d3 {[%clk 0:02:59.6]} 4... d6 {[%clk 0:02:56.3]} 5. Nbd2 {[%clk
0:02:56]} 5... Be7 {[%clk 0:02:56.1]} 6. c3 {[%clk 0:02:55.7]} 6... O-O {[%clk
0:02:55.9]} 7. Nf1 {[%clk 0:02:53.5]} 7... a6 {[%clk 0:02:55.4]} 8. Ba4 {[%clk
0:02:52.6]} 8... b5 {[%clk 0:02:54]} 9. Bc2 {[%clk 0:02:52.1]} 9... d5 {[%clk
0:02:52.8]} 10. Qe2 {[%clk 0:02:51.8]} 10... dxe4 {[%clk 0:02:52.4]} 11. dxe4
{[%clk 0:02:51.5]} 11... Be6 {[%clk 0:02:52.4]} 12. Ne3 {[%clk 0:02:51.5]} 12...
h6 {[%clk 0:02:50.5]} 13. O-O {[%clk 0:02:51.2]} 13... Qc8 {[%clk 0:02:48.1]}
14. Rd1 {[%clk 0:02:50.6]} 14... Rd8 {[%clk 0:02:45.2]} 15. Bd2 {[%clk
0:02:48.6]} 15... Bf8 {[%clk 0:02:36.7]} 16. h3 {[%clk 0:02:47.1]} 16... Bd6
{[%clk 0:02:32.1]} 17. Nh4 {[%clk 0:02:45.8]} 17... Ne7 {[%clk 0:02:28.4]} 18.
Qf3 {[%clk 0:02:44.9]} 18... Nh7 {[%clk 0:02:20.8]} 19. Nef5 {[%clk 0:02:44.4]}
19... Nxf5 {[%clk 0:02:13.4]} 20. Nxf5 {[%clk 0:02:42.1]} 20... Bxf5 {[%clk
0:01:54.3]} 21. exf5 {[%clk 0:02:43]} 21... Nf6 {[%clk 0:01:54.3]} 22. Bb3
{[%clk 0:02:42.8]} 22... Bf8 {[%clk 0:01:46.5]} 23. Be3 {[%clk 0:02:39.6]} 23...
c5 {[%clk 0:01:38.1]} 24. Rxd8 {[%clk 0:02:29.3]} 24... Qxd8 {[%clk 0:01:38.1]}
25. Rd1 {[%clk 0:02:27.7]} 25... Qc8 {[%clk 0:01:36.3]} 26. c4 {[%clk
0:02:27.7]} 26... Ra7 {[%clk 0:01:33.3]} 27. g4 {[%clk 0:02:19.9]} 27... e4
{[%clk 0:01:29.3]} 28. Qe2 {[%clk 0:02:19.5]} 28... Qe8 {[%clk 0:01:20.5]} 29.
h4 {[%clk 0:02:18]} 29... Rd7 {[%clk 0:01:18.6]} 30. g5 {[%clk 0:02:17.7]} 30...
hxg5 {[%clk 0:01:17.2]} 31. hxg5 {[%clk 0:02:17]} 31... Rxd1+ {[%clk 0:01:16]}
32. Qxd1 {[%clk 0:02:17.1]} 32... Nd7 {[%clk 0:01:13.2]} 33. cxb5 {[%clk
0:02:07.6]} 33... axb5 {[%clk 0:01:11.1]} 34. Bd5 {[%clk 0:02:07.8]} 34... Nb6
{[%clk 0:00:46.5]} 35. g6 {[%clk 0:02:07.8]} 35... Nxd5 {[%clk 0:00:46.3]} 36.
Qxd5 {[%clk 0:02:08.7]} 36... c4 {[%clk 0:00:41.6]} 37. Bg5 {[%clk 0:02:01.1]}
37... Bb4 {[%clk 0:00:28.9]} 38. a3 {[%clk 0:01:59]} 38... Bf8 {[%clk
0:00:08.6]} 39. Bd2 {[%clk 0:01:49.5]} 39... Be7 {[%clk 0:00:07.8]} 40. Qxe4
{[%clk 0:01:48.4]} 40... Qd7 {[%clk 0:00:06.9]} 41. Bc3 {[%clk 0:01:29.2]} 41...
fxg6 {[%clk 0:00:05.9]} 42. fxg6 {[%clk 0:01:30.1]} 42... Kf8 {[%clk 0:00:02.8]}
43. Qa8+ {[%clk 0:01:18.3]} 43... Qd8 {[%clk 0:00:02.5]} 44. Qxd8+ {[%clk
0:01:17.8]} 44... Bxd8 {[%clk 0:00:02.5]} 45. f4 {[%clk 0:01:18.5]} 45... Bc7
{[%clk 0:00:02.6]} 46. f5 {[%clk 0:01:18.8]} 46... Kg8 {[%clk 0:00:02.6]} 47.
Kg2 {[%clk 0:01:18.3]} 47... Bf4 {[%clk 0:00:02.8]} 48. Kf3 {[%clk 0:01:18.3]}
48... Bh6 {[%clk 0:00:02.7]} 49. Ke4 {[%clk 0:01:18.6]} 49... Kf8 {[%clk
0:00:03.2]} 50. Kd5 {[%clk 0:01:18.6]} 50... Be3 {[%clk 0:00:03]} 51. Kc6 {[%clk
0:01:19]} 51... b4 {[%clk 0:00:02.5]} 52. axb4 {[%clk 0:01:18.9]} 1-0

[Event "*** Titled Tuesday Blitz"]
[Site "Chess.com"]
[Date "2020.12.29"]
[Round "7"]
[White "goldenpuppy"]
[Black "pastouche06"]
[Result "1-0"]
[WhiteElo "2383"]
[BlackElo "2514"]
[TimeControl "180+1"]
[EndTime "11:16:26 PST"]
[Termination "goldenpuppy won on time"]

1. e4 {[%clk 0:03:00.9]} 1... c6 {[%clk 0:02:55.4]} 2. d4 {[%clk 0:03:00.2]}
2... d5 {[%clk 0:02:55.8]} 3. Nc3 {[%clk 0:03:00.9]} 3... dxe4 {[%clk
0:02:55.4]} 4. Nxe4 {[%clk 0:03:01.8]} 4... Nf6 {[%clk 0:02:55.7]} 5. Nxf6+
{[%clk 0:03:01.8]} 5... exf6 {[%clk 0:02:56.6]} 6. c3 {[%clk 0:03:02.2]} 6...
Bd6 {[%clk 0:02:56.7]} 7. Bd3 {[%clk 0:03:03.1]} 7... O-O {[%clk 0:02:56.8]} 8.
Qc2 {[%clk 0:03:03.1]} 8... Re8+ {[%clk 0:02:57.7]} 9. Ne2 {[%clk 0:03:02.8]}
9... h5 {[%clk 0:02:58.1]} 10. Be3 {[%clk 0:03:03.7]} 10... Nd7 {[%clk
0:02:57.1]} 11. O-O-O {[%clk 0:03:04.2]} 11... Nf8 {[%clk 0:02:57.2]} 12. Kb1
{[%clk 0:03:04.8]} 12... Be6 {[%clk 0:02:56.5]} 13. h3 {[%clk 0:03:05.2]} 13...
b5 {[%clk 0:02:47.5]} 14. Rhg1 {[%clk 0:03:05.3]} 14... Qd7 {[%clk 0:01:59]} 15.
Rdf1 {[%clk 0:02:54]} 15... Ng6 {[%clk 0:01:48.6]} 16. g4 {[%clk 0:02:48]} 16...
h4 {[%clk 0:01:37.8]} 17. Bxg6 {[%clk 0:02:39.9]} 17... fxg6 {[%clk 0:01:38.7]}
18. Qxg6 {[%clk 0:02:39.6]} 18... b4 {[%clk 0:01:16.4]} 19. Qd3 {[%clk
0:02:34.7]} 19... bxc3 {[%clk 0:01:13.1]} 20. Nxc3 {[%clk 0:02:35.6]} 20... Rab8
{[%clk 0:01:09]} 21. f4 {[%clk 0:02:35.1]} 21... Ba3 {[%clk 0:00:50.8]} 22. Bc1
{[%clk 0:02:34.8]} 22... Bb4 {[%clk 0:00:43.9]} 23. f5 {[%clk 0:02:28.7]} 23...
Bf7 {[%clk 0:00:42.5]} 24. g5 {[%clk 0:02:28.1]} 24... Bxc3 {[%clk 0:00:41.1]}
25. gxf6 {[%clk 0:02:07.7]} 25... Bxd4 {[%clk 0:00:33.6]} 26. Rxg7+ {[%clk
0:02:06.8]} 26... Kf8 {[%clk 0:00:32.9]} 27. Qa3+ {[%clk 0:01:29.7]} 27... c5
{[%clk 0:00:30]} 28. Bh6 {[%clk 0:01:25.5]} 28... Bxf6 {[%clk 0:00:15.5]} 29.
Qxc5+ {[%clk 0:01:20.3]} 29... Re7 {[%clk 0:00:14.7]} 30. Rgg1+ {[%clk
0:01:00.5]} 30... Ke8 {[%clk 0:00:14.4]} 31. Bc1 {[%clk 0:00:57.9]} 31... Qa4
{[%clk 0:00:10.8]} 32. a3 {[%clk 0:00:49.4]} 32... Qb3 {[%clk 0:00:06.3]} 33.
Qc6+ {[%clk 0:00:49]} 33... Kf8 {[%clk 0:00:05.5]} 34. Bh6+ {[%clk 0:00:47.9]}
34... Bg7 {[%clk 0:00:04.4]} 35. Bxg7+ {[%clk 0:00:48]} 35... Kg8 {[%clk
0:00:04.4]} 36. Bc3+ {[%clk 0:00:47.3]} 1-0

[Event "*** Titled Tuesday Blitz"]
[Site "Chess.com"]
[Date "2020.12.29"]
[Round "7"]
[White "Morshynska"]
[Black "Everyfishknows"]
[Result "1-0"]
[WhiteElo "2234"]
[BlackElo "2393"]
[TimeControl "180+1"]
[EndTime "11:16:27 PST"]
[Termination "Morshynska won by resignation"]

1. Nf3 {[%clk 0:03:00.9]} 1... Nf6 {[%clk 0:02:58.3]} 2. g3 {[%clk 0:03:01.8]}
2... e6 {[%clk 0:02:57.3]} 3. Bg2 {[%clk 0:03:02.7]} 3... d5 {[%clk 0:02:56.3]}
4. d4 {[%clk 0:03:02.5]} 4... Be7 {[%clk 0:02:54.1]} 5. O-O {[%clk 0:03:03.4]}
5... O-O {[%clk 0:02:54]} 6. c4 {[%clk 0:03:04.3]} 6... c6 {[%clk 0:02:54.2]} 7.
Nbd2 {[%clk 0:02:57.2]} 7... b6 {[%clk 0:02:53.9]} 8. b3 {[%clk 0:02:54.3]} 8...
Bb7 {[%clk 0:02:53.6]} 9. Bb2 {[%clk 0:02:54.5]} 9... Nbd7 {[%clk 0:02:46.6]}
10. Rc1 {[%clk 0:02:53.3]} 10... Rc8 {[%clk 0:02:46.4]} 11. Re1 {[%clk
0:02:36.1]} 11... c5 {[%clk 0:02:36]} 12. cxd5 {[%clk 0:02:26.3]} 12... exd5
{[%clk 0:02:33]} 13. e3 {[%clk 0:02:16.7]} 13... Re8 {[%clk 0:02:22.4]} 14. Rc2
{[%clk 0:02:10.6]} 14... Ne4 {[%clk 0:02:20.5]} 15. Qa1 {[%clk 0:01:57.7]} 15...
Bf6 {[%clk 0:02:17.1]} 16. Rec1 {[%clk 0:01:55.3]} 16... Nxd2 {[%clk 0:02:14.6]}
17. Nxd2 {[%clk 0:01:52.6]} 17... Rc7 {[%clk 0:01:56.4]} 18. dxc5 {[%clk
0:01:37.5]} 18... bxc5 {[%clk 0:01:53.5]} 19. Bxf6 {[%clk 0:01:35.3]} 19... Qxf6
{[%clk 0:01:41.5]} 20. Qxf6 {[%clk 0:01:34.4]} 20... gxf6 {[%clk 0:01:32.2]} 21.
Nb1 {[%clk 0:01:26.4]} 21... Rec8 {[%clk 0:01:30]} 22. Nc3 {[%clk 0:01:17.9]}
22... Nb6 {[%clk 0:01:19]} 23. Nb5 {[%clk 0:01:14.5]} 23... Re7 {[%clk
0:01:16.9]} 24. Rxc5 {[%clk 0:01:07.6]} 24... Rxc5 {[%clk 0:01:13.5]} 25. Rxc5
{[%clk 0:01:08.5]} 25... a6 {[%clk 0:01:03]} 26. Nd6 {[%clk 0:00:57.2]} 26...
Kf8 {[%clk 0:01:02.9]} 27. Nxb7 {[%clk 0:00:46.8]} 27... Rxb7 {[%clk 0:01:02.5]}
28. Bxd5 {[%clk 0:00:46.4]} 28... Nxd5 {[%clk 0:01:02.8]} 29. Rxd5 {[%clk
0:00:47.3]} 29... Rc7 {[%clk 0:01:00.4]} 30. Rd6 {[%clk 0:00:45.4]} 30... a5
{[%clk 0:01:00]} 31. Rxf6 {[%clk 0:00:44.2]} 31... a4 {[%clk 0:01:00.3]} 32.
bxa4 {[%clk 0:00:40.5]} 32... Rc2 {[%clk 0:01:00.5]} 33. a5 {[%clk 0:00:37.9]}
33... Rxa2 {[%clk 0:01:00.4]} 34. a6 {[%clk 0:00:38.1]} 34... Kg7 {[%clk
0:01:00.5]} 35. Rb6 {[%clk 0:00:37.9]} 35... f6 {[%clk 0:01:00.2]} 36. h4 {[%clk
0:00:37.6]} 36... Kg6 {[%clk 0:01:00.3]} 37. Kg2 {[%clk 0:00:37.4]} 37... h5
{[%clk 0:00:59.9]} 38. Kf3 {[%clk 0:00:33.2]} 38... Kf7 {[%clk 0:00:59.6]} 39.
e4 {[%clk 0:00:32.2]} 39... Kg6 {[%clk 0:00:59.8]} 40. Ke3 {[%clk 0:00:31.8]}
40... Kf7 {[%clk 0:00:57.7]} 41. f3 {[%clk 0:00:31.2]} 41... Kg6 {[%clk
0:00:58]} 42. Kf4 {[%clk 0:00:31.6]} 42... Ra5 {[%clk 0:00:57.8]} 43. g4 {[%clk
0:00:24.6]} 43... hxg4 {[%clk 0:00:58.2]} 44. fxg4 {[%clk 0:00:24.2]} 44... Kf7
{[%clk 0:00:57.3]} 45. Rb7+ {[%clk 0:00:20.2]} 45... Ke6 {[%clk 0:00:56.2]} 46.
a7 {[%clk 0:00:20.1]} 46... Ra1 {[%clk 0:00:56.1]} 47. h5 {[%clk 0:00:18.4]}
47... Rf1+ {[%clk 0:00:55.3]} 48. Ke3 {[%clk 0:00:17.6]} 48... Rg1 {[%clk
0:00:54.8]} 49. a8=Q {[%clk 0:00:16.4]} 1-0

[Event "*** Titled Tuesday Blitz"]
[Site "Chess.com"]
[Date "2020.12.29"]
[Round "7"]
[White "ChessArchitect64"]
[Black "Alexandercs432"]
[Result "0-1"]
[WhiteElo "2072"]
[BlackElo "2194"]
[TimeControl "180+1"]
[EndTime "11:16:27 PST"]
[Termination "Alexandercs432 won by resignation"]

1. e4 {[%clk 0:02:59.7]} 1... c5 {[%clk 0:02:58.8]} 2. Nf3 {[%clk 0:02:55.8]}
2... e6 {[%clk 0:02:59.2]} 3. c3 {[%clk 0:02:37]} 3... d5 {[%clk 0:02:57.5]} 4.
e5 {[%clk 0:02:36.8]} 4... d4 {[%clk 0:02:57.2]} 5. Bd3 {[%clk 0:02:34.2]} 5...
Nc6 {[%clk 0:02:56.9]} 6. O-O {[%clk 0:02:33.7]} 6... Nge7 {[%clk 0:02:57]} 7.
Re1 {[%clk 0:02:32.6]} 7... Ng6 {[%clk 0:02:57.1]} 8. Bf1 {[%clk 0:02:30.5]}
8... Qc7 {[%clk 0:02:56]} 9. Qe2 {[%clk 0:02:28.1]} 9... Be7 {[%clk 0:02:55.2]}
10. d3 {[%clk 0:02:27.3]} 10... O-O {[%clk 0:02:53.6]} 11. c4 {[%clk 0:02:27]}
11... b6 {[%clk 0:02:53.1]} 12. Na3 {[%clk 0:02:26.2]} 12... a6 {[%clk
0:02:52.8]} 13. Nc2 {[%clk 0:02:24.8]} 13... Bb7 {[%clk 0:02:53.1]} 14. Bd2
{[%clk 0:02:20.5]} 14... Rae8 {[%clk 0:02:51.5]} 15. g3 {[%clk 0:02:17]} 15...
f6 {[%clk 0:02:47.1]} 16. exf6 {[%clk 0:02:08.4]} 16... Bxf6 {[%clk 0:02:48]}
17. Bg2 {[%clk 0:02:08.5]} 17... e5 {[%clk 0:02:47]} 18. Ng5 {[%clk 0:02:04.7]}
18... Nd8 {[%clk 0:02:00.6]} 19. Ne4 {[%clk 0:02:01.1]} 19... Kh8 {[%clk
0:01:51.1]} 20. h4 {[%clk 0:01:42.7]} 20... Ne7 {[%clk 0:01:39]} 21. Nxf6 {[%clk
0:01:35]} 21... gxf6 {[%clk 0:01:39.9]} 22. f4 {[%clk 0:01:22.9]} 22... Bxg2
{[%clk 0:01:32.6]} 23. Kxg2 {[%clk 0:01:21.4]} 23... Nec6 {[%clk 0:01:21.3]} 24.
f5 {[%clk 0:01:18.9]} 24... Qd7 {[%clk 0:01:15.1]} 25. Qe4 {[%clk 0:01:11.8]}
25... Ne7 {[%clk 0:01:07.8]} 26. g4 {[%clk 0:01:09.7]} 26... Qc6 {[%clk
0:01:05.7]} 27. Kh3 {[%clk 0:01:07.4]} 27... Qxe4 {[%clk 0:01:04.8]} 28. Rxe4
{[%clk 0:01:06]} 28... h5 {[%clk 0:01:03.7]} 29. g5 {[%clk 0:00:59.7]} 29...
Nxf5 {[%clk 0:01:02.3]} 30. g6 {[%clk 0:00:57.9]} 30... Kg7 {[%clk 0:00:57.4]}
31. Rg1 {[%clk 0:00:55.9]} 31... Nd6 {[%clk 0:00:56.8]} 32. Re2 {[%clk
0:00:55.4]} 32... f5 {[%clk 0:00:42.5]} 33. Bg5 {[%clk 0:00:55]} 33... e4 {[%clk
0:00:38]} 34. Ne1 {[%clk 0:00:48.7]} 34... Ne6 {[%clk 0:00:30.8]} 35. Bf4 {[%clk
0:00:39.9]} 35... Nxf4+ {[%clk 0:00:29.5]} 36. Kg3 {[%clk 0:00:35.4]} 36...
Nxe2+ {[%clk 0:00:29.8]} 37. Kf2 {[%clk 0:00:34.9]} 37... Nxg1 {[%clk
0:00:30.7]} 38. Kxg1 {[%clk 0:00:34.5]} 38... Kxg6 {[%clk 0:00:30.5]} 0-1

[Event "*** Titled Tuesday Blitz"]
[Site "Chess.com"]
[Date "2020.12.29"]
[Round "7"]
[White "Flopezin"]
[Black "rachidhuilda"]
[Result "1-0"]
[WhiteElo "2362"]
[BlackElo "2227"]
[TimeControl "180+1"]
[EndTime "11:16:28 PST"]
[Termination "Flopezin won on time"]

1. c4 {[%clk 0:03:00.9]} 1... c6 {[%clk 0:01:39.8]} 2. e4 {[%clk 0:02:58.7]}
2... d5 {[%clk 0:01:39.5]} 3. exd5 {[%clk 0:02:58.4]} 3... cxd5 {[%clk
0:01:39.3]} 4. d4 {[%clk 0:02:59.3]} 4... Nf6 {[%clk 0:01:39]} 5. Nc3 {[%clk
0:02:59.8]} 5... Nc6 {[%clk 0:01:38]} 6. Nf3 {[%clk 0:03:00.4]} 6... Bg4 {[%clk
0:01:37.8]} 7. cxd5 {[%clk 0:03:00.5]} 7... Nxd5 {[%clk 0:01:37]} 8. Qb3 {[%clk
0:03:01]} 8... Bxf3 {[%clk 0:01:37.4]} 9. gxf3 {[%clk 0:03:01.9]} 9... e6 {[%clk
0:01:37.1]} 10. Qxb7 {[%clk 0:03:00.7]} 10... Nxd4 {[%clk 0:01:36.2]} 11. Bb5+
{[%clk 0:02:59.4]} 11... Nxb5 {[%clk 0:01:36.3]} 12. Qc6+ {[%clk 0:02:59.9]}
12... Ke7 {[%clk 0:01:32.6]} 13. Qxb5 {[%clk 0:03:00.3]} 13... Qd7 {[%clk
0:01:25.5]} 14. Qxd7+ {[%clk 0:02:59]} 14... Kxd7 {[%clk 0:01:25.3]} 15. Nxd5
{[%clk 0:02:59.9]} 15... exd5 {[%clk 0:01:25.3]} 16. Be3 {[%clk 0:03:00.8]}
16... Bb4+ {[%clk 0:01:23.4]} 17. Ke2 {[%clk 0:02:59.8]} 17... Rhc8 {[%clk
0:01:22.2]} 18. Rac1 {[%clk 0:02:58.9]} 18... Ke6 {[%clk 0:01:16.5]} 19. Kd3
{[%clk 0:02:58.7]} 19... a6 {[%clk 0:01:08.1]} 20. Rhg1 {[%clk 0:02:56.6]} 20...
g6 {[%clk 0:01:08.1]} 21. Bd4 {[%clk 0:02:51.7]} 21... Bd6 {[%clk 0:01:05.9]}
22. Rge1+ {[%clk 0:02:50.1]} 22... Kd7 {[%clk 0:01:05.4]} 23. Bc3 {[%clk
0:02:42.2]} 23... Re8 {[%clk 0:00:51.8]} 24. h3 {[%clk 0:02:38.4]} 24... Re6
{[%clk 0:00:48.9]} 25. Kd4 {[%clk 0:02:33.1]} 25... Bf4 {[%clk 0:00:39.9]} 26.
Rcd1 {[%clk 0:02:21.4]} 26... Kc6 {[%clk 0:00:36.7]} 27. b3 {[%clk 0:02:02.4]}
27... Rae8 {[%clk 0:00:36.4]} 28. Kd3 {[%clk 0:01:55.8]} 28... Rxe1 {[%clk
0:00:35.7]} 29. Bxe1 {[%clk 0:01:56.7]} 29... Kd6 {[%clk 0:00:31.4]} 30. Bb4+
{[%clk 0:01:56.3]} 30... Kc6 {[%clk 0:00:27.2]} 31. Rg1 {[%clk 0:01:55.8]} 31...
Re5 {[%clk 0:00:21.2]} 32. Rg4 {[%clk 0:01:51.6]} 32... Rf5 {[%clk 0:00:21.4]}
33. Bc3 {[%clk 0:01:47.9]} 33... Kd6 {[%clk 0:00:20]} 34. Bd4 {[%clk 0:01:45.1]}
34... f6 {[%clk 0:00:17.4]} 35. Ba7 {[%clk 0:01:43.5]} 35... Be5 {[%clk
0:00:17.6]} 36. Ke2 {[%clk 0:01:37.5]} 36... Rf4 {[%clk 0:00:12.4]} 37. Rg1
{[%clk 0:01:37.9]} 37... Rh4 {[%clk 0:00:11.8]} 38. Be3 {[%clk 0:01:25.6]} 38...
Rxh3 {[%clk 0:00:09.1]} 39. Rc1 {[%clk 0:01:20.4]} 39... d4 {[%clk 0:00:08.3]}
40. Bd2 {[%clk 0:01:19.6]} 40... Kd5 {[%clk 0:00:07]} 41. Rc8 {[%clk 0:01:09.5]}
41... d3+ {[%clk 0:00:07.2]} 42. Kxd3 {[%clk 0:01:09.3]} 42... Rxf3+ {[%clk
0:00:06.4]} 43. Ke2 {[%clk 0:01:10.2]} 43... Rf5 {[%clk 0:00:04.2]} 44. Rd8+
{[%clk 0:01:07.9]} 44... Ke4 {[%clk 0:00:01.4]} 45. Be3 {[%clk 0:01:04.5]} 1-0

[Event "*** Titled Tuesday Blitz"]
[Site "Chess.com"]
[Date "2020.12.29"]
[Round "7"]
[White "jocmil"]
[Black "JonahWillow"]
[Result "0-1"]
[WhiteElo "2549"]
[BlackElo "2712"]
[TimeControl "180+1"]
[EndTime "11:16:29 PST"]
[Termination "JonahWillow won on time"]

1. Nf3 {[%clk 0:03:00.9]} 1... c5 {[%clk 0:03:00.1]} 2. c4 {[%clk 0:03:00.3]}
2... Nc6 {[%clk 0:03:00.4]} 3. Nc3 {[%clk 0:02:59.5]} 3... g6 {[%clk 0:03:00.8]}
4. g3 {[%clk 0:02:57.1]} 4... Bg7 {[%clk 0:03:01.1]} 5. Bg2 {[%clk 0:02:57.8]}
5... e6 {[%clk 0:03:01.8]} 6. O-O {[%clk 0:02:57.4]} 6... Nge7 {[%clk
0:03:02.4]} 7. e3 {[%clk 0:02:28.5]} 7... O-O {[%clk 0:02:54.5]} 8. d4 {[%clk
0:02:28.5]} 8... d6 {[%clk 0:02:47.3]} 9. d5 {[%clk 0:02:05.1]} 9... Na5 {[%clk
0:02:42.8]} 10. Nd2 {[%clk 0:02:00.7]} 10... exd5 {[%clk 0:02:42.8]} 11. cxd5
{[%clk 0:02:01.1]} 11... a6 {[%clk 0:02:41.9]} 12. a4 {[%clk 0:01:51.6]} 12...
Bd7 {[%clk 0:02:41.2]} 13. Nce4 {[%clk 0:01:16.4]} 13... Qc7 {[%clk 0:02:32.3]}
14. Qc2 {[%clk 0:01:15.2]} 14... f5 {[%clk 0:02:17.4]} 15. Ng5 {[%clk
0:01:11.3]} 15... b5 {[%clk 0:02:13.5]} 16. axb5 {[%clk 0:01:06.4]} 16... axb5
{[%clk 0:02:14.4]} 17. h4 {[%clk 0:00:58.7]} 17... Nb7 {[%clk 0:02:07]} 18. Rxa8
{[%clk 0:00:57.5]} 18... Rxa8 {[%clk 0:02:07.9]} 19. b4 {[%clk 0:00:55.8]} 19...
c4 {[%clk 0:02:02.3]} 20. h5 {[%clk 0:00:53.7]} 20... Ra4 {[%clk 0:01:52.2]} 21.
hxg6 {[%clk 0:00:40.7]} 21... hxg6 {[%clk 0:01:51.3]} 22. Ndf3 {[%clk
0:00:38.7]} 22... Nxd5 {[%clk 0:01:45.8]} 23. Nd4 {[%clk 0:00:24.3]} 23... Nxb4
{[%clk 0:01:37.8]} 24. Qd1 {[%clk 0:00:23.7]} 24... Bf6 {[%clk 0:01:30.8]} 25.
Nge6 {[%clk 0:00:20.1]} 25... Qc8 {[%clk 0:01:23.3]} 26. Nf4 {[%clk 0:00:18.2]}
26... Kg7 {[%clk 0:01:22.9]} 27. e4 {[%clk 0:00:08.3]} 27... Nd3 {[%clk
0:01:18.2]} 28. Nxd3 {[%clk 0:00:06.9]} 28... cxd3 {[%clk 0:01:19.1]} 29. Nxb5
{[%clk 0:00:02]} 29... Bxb5 {[%clk 0:01:18.8]} 30. exf5 {[%clk 0:00:02.9]} 30...
Nc5 {[%clk 0:01:12.5]} 31. Be3 {[%clk 0:00:02.8]} 31... Qxf5 {[%clk 0:01:12.2]}
32. Qc1 {[%clk 0:00:01.8]} 32... Ra1 {[%clk 0:01:11.6]} 33. Qxa1 {[%clk
0:00:01.6]} 33... Bxa1 {[%clk 0:01:11.3]} 34. Rxa1 {[%clk 0:00:02.5]} 34... Qf7
{[%clk 0:01:01.5]} 35. Rb1 {[%clk 0:00:01.6]} 35... Ba6 {[%clk 0:00:56.5]} 36.
Bd4+ {[%clk 0:00:02]} 36... Kh7 {[%clk 0:00:54.4]} 37. Rb8 {[%clk 0:00:02.6]}
37... g5 {[%clk 0:00:51.8]} 38. Rh8+ {[%clk 0:00:01.9]} 38... Kg6 {[%clk
0:00:52.4]} 39. Ra8 {[%clk 0:00:01.6]} 39... Bb7 {[%clk 0:00:51.4]} 0-1

[Event "*** Titled Tuesday Blitz"]
[Site "Chess.com"]
[Date "2020.12.29"]
[Round "7"]
[White "Sharpchess22"]
[Black "Salem-AR"]
[Result "1-0"]
[WhiteElo "2820"]
[BlackElo "2920"]
[TimeControl "180+1"]
[EndTime "11:16:30 PST"]
[Termination "Sharpchess22 won on time"]

1. e4 {[%clk 0:03:00.9]} 1... c5 {[%clk 0:02:55.2]} 2. Nf3 {[%clk 0:03:00.4]}
2... d6 {[%clk 0:02:55.4]} 3. d4 {[%clk 0:03:00.2]} 3... cxd4 {[%clk 0:02:56.3]}
4. Nxd4 {[%clk 0:03:00.5]} 4... Nf6 {[%clk 0:02:57]} 5. Nc3 {[%clk 0:03:00.7]}
5... a6 {[%clk 0:02:57.8]} 6. a3 {[%clk 0:02:58.9]} 6... e6 {[%clk 0:02:52.1]}
7. f4 {[%clk 0:02:54.9]} 7... Nc6 {[%clk 0:02:49.7]} 8. Be3 {[%clk 0:02:53.9]}
8... Be7 {[%clk 0:02:49.8]} 9. Qf3 {[%clk 0:02:52.8]} 9... e5 {[%clk 0:02:49.1]}
10. Nf5 {[%clk 0:02:48.8]} 10... Bxf5 {[%clk 0:02:45.6]} 11. exf5 {[%clk
0:02:48.5]} 11... Nd4 {[%clk 0:02:39.6]} 12. Qf2 {[%clk 0:02:21.2]} 12... Ng4
{[%clk 0:02:37.9]} 13. Bxd4 {[%clk 0:02:16.2]} 13... Nxf2 {[%clk 0:02:38.1]} 14.
Bxf2 {[%clk 0:02:16.4]} 14... exf4 {[%clk 0:02:38]} 15. O-O-O {[%clk 0:02:13.6]}
15... O-O {[%clk 0:02:37]} 16. Nd5 {[%clk 0:02:13.7]} 16... Bg5 {[%clk
0:02:34.9]} 17. h4 {[%clk 0:02:09.2]} 17... Bh6 {[%clk 0:02:35.1]} 18. f6 {[%clk
0:02:06.4]} 18... gxf6 {[%clk 0:02:33.1]} 19. Kb1 {[%clk 0:02:04.5]} 19... Re8
{[%clk 0:02:32.1]} 20. Bc4 {[%clk 0:02:02]} 20... Re5 {[%clk 0:01:59.7]} 21. Bb6
{[%clk 0:01:56.8]} 21... Qc8 {[%clk 0:02:00]} 22. Bb3 {[%clk 0:01:51.7]} 22...
Kg7 {[%clk 0:01:54.7]} 23. Bd4 {[%clk 0:01:27.6]} 23... Qf5 {[%clk 0:01:50.9]}
24. Rhf1 {[%clk 0:01:22.6]} 24... Qg4 {[%clk 0:01:38.7]} 25. g3 {[%clk 0:01:12]}
25... fxg3 {[%clk 0:01:22.4]} 26. Nxf6 {[%clk 0:01:10.8]} 26... Qxh4 {[%clk
0:01:09.8]} 27. Nd7 {[%clk 0:01:07.7]} 27... f6 {[%clk 0:01:05.7]} 28. Rxf6
{[%clk 0:00:42.2]} 28... Kh8 {[%clk 0:00:19.3]} 29. Rxh6 {[%clk 0:00:30.6]}
29... Qxh6 {[%clk 0:00:04.6]} 30. Nxe5 {[%clk 0:00:30.1]} 1-0